[Event "IIFL Wealth 4th Mumbai Open"]
[Site "Mumbai"]
[Date "2019.01.03"]
[Round "5"]
[White "Kapadi, Yash"]
[Black "Ratnapriya K"]
[Result "0-1"]
[ECO "A46"]
[WhiteElo "1749"]
[BlackElo "1508"]
[Annotator "NA"]
[PlyCount "70"]
[EventDate "2018.12.30"]
[EventType "swiss"]
[EventCountry "IND"]
[SourceTitle "playchess.com"]
[Source "ChessBase"]
[SourceQuality "1"]
[TimeControl "40/5400+30:1800+30"]

1. d4 {[%emt 0:02:15]} Nf6 {[%emt 0:00:00]} 2. Nf3 {[%emt 0:00:08]} e6 {[%emt 0:00:03]} 3. g3 {[%emt 0:00:13]} b5 {[%emt 0:02:07]} 4. Bg2 {[%emt 0:00:16]} Bb7 {[%emt 0:00:10]} 5. O-O {[%emt 0:00:08]} c5 {[%emt 0:00:14]} 6. a3 {[%emt 0:00:32]} Be7 {[%emt 0:00:22]} 7. dxc5 {[%emt 0:01:14]} Bxc5 {[%emt 0:00:38]} 8. b4 {[%emt 0:00:11]} Be7 {[%emt 0:00:20]} 9. Bb2 {[%emt 0:00:13]} O-O {[%emt 0:00:14]} 10. Qd3 {[%emt 0:03:46]} a6 {[%emt 0:01:25]} 11. Ng5 {[%emt 0:12:28]} Bxg2 {[%emt 0:00:33]} 12. Kxg2 {[%emt 0:27:28]} h6 {[%emt 0:02:02]} 13. Bxf6 {[%emt 0:02:15]} hxg5 {[%emt 0:00:23]} 14. Bb2 {[%emt 0:01:43]} d5 {[%emt 0:01:04]} 15. Nd2 {[%emt 0:01:31]} Nd7 {[%emt 0:01:02]} 16. f4 {[%emt 0:05:41]} gxf4 {[%emt 0:01:56]} 17. Rxf4 {[%emt 0:00:20]} Bg5 {[%emt 0:02:19]} 18. Rf2 {[%emt 0:00:38]} Qc7 {[%emt 0:04:21]} 19. Nf3 {[%emt 0:19:43]} Be7 {[%emt 0:04:55]} 20. Rd1 {[%emt 0:02:14]} Rac8 {[%emt 0:04:10]} 21. e4 {[%emt 0:02:20]} Nb6 {[%emt 0:01:59]} 22. exd5 {[%emt 0:02:11]} Nxd5 {[%emt 0:01:04]} 23. Be5 {[%emt 0:03:00]} Qc4 {[%emt 0:02:14]} 24. Qd2 {[%emt 0:02:31]} Qxc2 {[%emt 0:06:07]} 25. Qxc2 {[%emt 0:01:14]} Ne3+ {[%emt 0:02:06]} 26. Kg1 {[%emt 0:00:57]} Nxc2 {[%emt 0:01:45]} 27. Rd3 {[%emt 0:05:53]} a5 {[%emt 0:01:16]} 28. Rd7 {[%emt 0:00:33]} Rfe8 {[%emt 0:00:37]} 29. Nd4 {[%emt 0:00:45]} Nxd4 {[%emt 0:00:27]} 30. Bxd4 {[%emt 0:00:00]} axb4 {[%emt 0:00:44]} 31. axb4 {[%emt 0:00:01]} Rcd8 {[%emt 0:00:46]} 32. Rxd8 {[%emt 0:00:15]} Rxd8 {[%emt 0:00:10]} 33. Bc3 {[%emt 0:02:25]} Rc8 {[%emt 0:00:15]} 34. Be1 {[%emt 0:01:02]} Rc1 {[%emt 0:00:52]} 35. Re2 {[%emt 0:00:25]} Bxb4 {[%emt 0:00:12]} 0-1

[Event "IIFL Wealth 4th Mumbai Open"]
[Site "Mumbai"]
[Date "2019.01.03"]
[Round "5"]
[White "Shivasubramanian, R."]
[Black "Kothari, Swapnil"]
[Result "1-0"]
[ECO "D00"]
[WhiteElo "1738"]
[BlackElo "1870"]
[Annotator "NA"]
[PlyCount "113"]
[EventDate "2018.12.30"]
[EventType "swiss"]
[EventCountry "IND"]
[SourceTitle "playchess.com"]
[Source "ChessBase"]
[SourceQuality "1"]
[TimeControl "40/5400+30:1800+30"]

1. d4 {[%emt 0:00:00]} d5 {[%emt 0:00:00]} 2. Bf4 {[%emt 0:00:00]} Nf6 {[%emt 0:00:00]} 3. e3 {[%emt 0:00:00]} e6 {[%emt 0:00:58]} 4. Bd3 {[%emt 0:01:12]} c5 {[%emt 0:00:25]} 5. c3 {[%emt 0:00:13]} Nc6 {[%emt 0:00:14]} 6. Nf3 {[%emt 0:01:09]} Bd7 {[%emt 0:00:32]} 7. h3 {[%emt 0:01:11]} Rc8 {[%emt 0:07:32]} 8. Nbd2 {[%emt 0:01:41]} cxd4 {[%emt 0:03:03]} 9. exd4 {[%emt 0:02:04]} Be7 {[%emt 0:04:56]} 10. O-O {[%emt 0:00:18]} O-O {[%emt 0:02:42]} 11. Ne5 {[%emt 0:08:32]} Be8 {[%emt 0:03:02]} 12. Re1 {[%emt 0:10:23]} b5 {[%emt 0:04:17]} 13. Ng4 {[%emt 0:06:30]} Na5 {[%emt 0:10:14]} 14. Qb1 {[%emt 0:21:51]} Nxg4 {[%emt 0:19:39]} 15. hxg4 {[%emt 0:02:58]} h6 {[%emt 0:05:05]} 16. Re3 {[%emt 0:03:05]} Bd6 {[%emt 0:08:13]} 17. Bxd6 {[%emt 0:01:48]} Qxd6 {[%emt 0:00:02]} 18. g5 {[%emt 0:08:08]} Nc4 {[%emt 0:08:10]} 19. Bxc4 {[%emt 0:05:19]} bxc4 {[%emt 0:00:38]} 20. gxh6 {[%emt 0:02:10]} g6 {[%emt 0:01:52]} 21. Nf3 {[%emt 0:01:15]} Qf4 {[%emt 0:01:46]} 22. Ne5 {[%emt 0:02:22]} Rb8 {[%emt 0:05:06]} 23. Qc2 {[%emt 0:00:54]} Rb6 {[%emt 0:01:00]} 24. Rf3 {[%emt 0:02:59]} Qxh6 {[%emt 0:01:39]} 25. Rh3 {[%emt 0:00:17]} Qf4 {[%emt 0:01:54]} 26. Re1 {[%emt 0:02:38]} Kg7 {[%emt 0:02:59]} 27. Ree3 {[%emt 0:00:54]} f6 {[%emt 0:01:17]} 28. Ref3 {[%emt 0:03:45]} Qg5 {[%emt 0:03:02]} 29. Rfg3 {[%emt 0:02:56]} Qf5 {[%emt 0:00:18]} 30. Qc1 {[%emt 0:00:13]} g5 {[%emt 0:01:58]} 31. Rf3 {[%emt 0:02:41]} fxe5 {[%emt 0:01:27]} 32. Rxf5 {[%emt 0:00:07]} Rxf5 {[%emt 0:00:04]} 33. dxe5 {[%emt 0:00:14]} Rxe5 {[%emt 0:00:40]} 34. Qd2 {[%emt 0:00:36]} Rf5 {[%emt 0:01:21]} 35. Qd4+ {[%emt 0:00:09]} e5 {[%emt 0:00:32]} 36. Qxd5 {[%emt 0:00:48]} Rbf6 {[%emt 0:00:15]} 37. Qc5 {[%emt 0:02:07]} a6 {[%emt 0:00:37]} 38. Qe7+ {[%emt 0:01:15]} Bf7 {[%emt 0:00:03]} 39. Qd8 {[%emt 0:00:00]} Bg8 {[%emt 0:00:00]} 40. Rg3 {[%emt 0:00:00]} Bf7 {[%emt 0:00:00]} 41. Qd2 {[%emt 0:03:46]} Kg6 {[%emt 0:02:00]} 42. Re3 {[%emt 0:02:17]} Re6 {[%emt 0:06:22]} 43. Qc2 {[%emt 0:04:35]} Kf6 {[%emt 0:00:41]} 44. Rh3 {[%emt 0:00:23]} Bg6 {[%emt 0:05:11]} 45. Rh6 {[%emt 0:00:18]} g4 {[%emt 0:03:58]} 46. Qd2 {[%emt 0:00:08]} Ke7 {[%emt 0:03:34]} 47. Qe3 {[%emt 0:02:04]} Kf6 {[%emt 0:01:20]} 48. b3 {[%emt 0:14:33]} Kg7 {[%emt 0:04:34]} 49. Rh4 {[%emt 0:01:13]} Rd6 {[%emt 0:04:33]} 50. bxc4 {[%emt 0:03:17]} Kf6 {[%emt 0:01:03]} 51. c5 {[%emt 0:03:33]} Rd1+ {[%emt 0:00:56]} 52. Kh2 {[%emt 0:00:05]} Rf4 {[%emt 0:00:10]} 53. c6 {[%emt 0:02:14]} Rd3 {[%emt 0:03:15]} 54. Qc5 {[%emt 0:00:52]} g3+ {[%emt 0:01:15]} 55. fxg3 {[%emt 0:00:13]} Rf1 {[%emt 0:00:01]} 56. Qf8+ {[%emt 0:00:40]} Bf7 {[%emt 0:00:00]} 57. Rh6+ {[%emt 0:00:25]} 1-0

[Event "IIFL Wealth 4th Mumbai Open"]
[Site "Mumbai"]
[Date "2019.01.03"]
[Round "5"]
[White "Arhan, Chethan Anand"]
[Black "Marium Fatima"]
[Result "1-0"]
[ECO "D36"]
[WhiteElo "1710"]
[BlackElo "1494"]
[Annotator "NA"]
[PlyCount "94"]
[EventDate "2018.12.30"]
[EventType "swiss"]
[EventCountry "IND"]
[SourceTitle "playchess.com"]
[Source "ChessBase"]
[SourceQuality "1"]
[TimeControl "40/5400+30:1800+30"]

1. d4 Nf6 2. c4 e6 3. Nc3 d5 4. cxd5 exd5 5. Bg5 c6 6. Qc2 Be7 7. e3 Bg4 8. Bd3 Nbd7 9. Nge2 Bxe2 10. Bxe2 O-O 11. O-O Re8 12. Bd3 Qc7 13. h3 h6 14. Bh4 Bd6 15. Bxf6 Nxf6 16. a3 Re7 17. b4 a6 18. Qb3 Qb6 19. Rae1 Rae8 20. Qd1 a5 21. Na4 Qa7 22. Qb3 b5 23. Nb2 axb4 24. axb4 Qb6 25. Rc1 Ra8 26. Rc2 Nd7 27. Rfc1 Nb8 28. Qc3 Rea7 29. Bf1 Ra3 30. Qe1 Rb3 31. Nd3 Ra4 32. e4 Qxd4 33. exd5 Qxd5 34. Qe8+ Kh7 35. Nc5 Bxc5 36. Rxc5 Qd6 37. Qxf7 Raxb4 38. Be2 Qf6 39. Qe8 Qd6 40. Bd1 Rb2 41. Bc2+ Rxc2 42. R1xc2 Rd4 43. Re2 Qd8 44. Re6 Qg5 45. Rc3 Rd8 46. Qe7 Rc8 47. Rg3 Rg8 1-0

[Event "IIFL Wealth 4th Mumbai Open"]
[Site "Mumbai"]
[Date "2019.01.03"]
[Round "5"]
[White "Arhan, Chethan Anand"]
[Black "Marium Fatima"]
[Result "*"]
[ECO "D36"]
[WhiteElo "1710"]
[BlackElo "1494"]
[Annotator "NA"]
[PlyCount "59"]
[EventDate "2018.12.30"]
[EventType "swiss"]
[EventCountry "IND"]
[SourceTitle "playchess.com"]
[Source "ChessBase"]
[SourceQuality "1"]
[TimeControl "40/5400+30:1800+30"]

1. d4 Nf6 2. c4 e6 3. Nc3 d5 4. cxd5 exd5 5. Bg5 c6 6. Qc2 Be7 7. e3 Bg4 8. Bd3 Nbd7 9. Nge2 Bxe2 10. Bxe2 O-O 11. O-O Re8 12. Bd3 Qc7 13. h3 h6 14. Bh4 Bd6 15. Bxf6 Nxf6 16. a3 Re7 17. b4 a6 18. Qb3 Qb6 19. Rae1 a5 20. Na4 Qa7 21. Rc1 b5 22. Nb2 axb4 23. axb4 Qb6 24. Rc2 Nd7 25. Rfc1 Nb8 26. Qc3 Rea7 27. Bf1 Ra3 28. Qe1 Rb3 29. Nd3 Qxd4 30. e4 *

[Event "IIFL Wealth 4th Mumbai Open"]
[Site "Mumbai"]
[Date "2019.01.03"]
[Round "5"]
[White "Tamhankar, Siddhant"]
[Black "Shravan, Swaminathan"]
[Result "1-0"]
[ECO "B14"]
[WhiteElo "1704"]
[BlackElo "1488"]
[Annotator "NA"]
[PlyCount "71"]
[EventDate "2018.12.30"]
[EventType "swiss"]
[EventCountry "IND"]
[SourceTitle "playchess.com"]
[Source "ChessBase"]
[SourceQuality "1"]
[TimeControl "40/5400+30:1800+30"]

1. e4 {[%emt 0:00:00]} c6 {[%emt 0:00:00]} 2. d4 d5 {[%emt 0:00:00]} 3. exd5 {[%emt 0:00:00]} cxd5 {[%emt 0:00:00]} 4. c4 {[%emt 0:00:02]} e6 {[%emt 0:00:08]} 5. Nc3 {[%emt 0:00:14]} Nf6 {[%emt 0:01:03]} 6. Nf3 {[%emt 0:00:20]} Nc6 {[%emt 0:01:01]} 7. Bd3 {[%emt 0:01:38]} Bd6 {[%emt 0:01:57]} 8. O-O {[%emt 0:00:28]} h6 {[%emt 0:03:55]} 9. cxd5 {[%emt 0:07:41]} exd5 {[%emt 0:01:20]} 10. Re1+ {[%emt 0:00:43]} Ne7 {[%emt 0:02:22]} 11. Ne5 {[%emt 0:02:03]} O-O {[%emt 0:02:08]} 12. Qf3 {[%emt 0:18:47]} Nc6 {[%emt 0:07:17]} 13. Nxc6 {[%emt 0:00:57]} bxc6 {[%emt 0:00:12]} 14. h3 {[%emt 0:00:17]} Bc7 {[%emt 0:10:11]} 15. Bf4 {[%emt 0:04:26]} Be6 {[%emt 0:04:45]} 16. Be5 {[%emt 0:09:43]} Nd7 {[%emt 0:04:17]} 17. Bc2 {[%emt 0:06:06]} Nxe5 {[%emt 0:02:56]} 18. dxe5 {[%emt 0:00:04]} Qg5 {[%emt 0:05:25]} 19. Re2 {[%emt 0:20:13]} Bxe5 {[%emt 0:11:49]} 20. Rae1 {[%emt 0:00:14]} Bxc3 {[%emt 0:01:01]} 21. Qxc3 {[%emt 0:00:33]} d4 {[%emt 0:12:37]} 22. Qxd4 {[%emt 0:05:20]} Bxh3 {[%emt 0:23:23]} 23. f4 {[%emt 0:07:27]} Qg3 {[%emt 0:00:02]} 24. Qe4 {[%emt 0:00:34]} f5 {[%emt 0:00:02]} 25. Qxc6 Bg4 {[%emt 0:00:30]} 26. Rf2 {[%emt 0:08:51]} Kh7 {[%emt 0:02:41]} 27. Re7 {[%emt 0:03:41]} Rac8 {[%emt 0:01:08]} 28. Qe6 {[%emt 0:00:20]} Kh8 {[%emt 0:00:31]} 29. Qe5 {[%emt 0:00:46]} Rf6 {[%emt 0:01:09]} 30. Re8+ {[%emt 0:00:55]} Rxe8 {[%emt 0:00:01]} 31. Qxe8+ {[%emt 0:00:10]} Kh7 {[%emt 0:00:01]} 32. Bb3 {[%emt 0:00:29]} h5 {[%emt 0:00:26]} 33. Qg8+ {[%emt 0:00:12]} Kg6 {[%emt 0:00:25]} 34. Ba4 {[%emt 0:00:41]} Rd6 {[%emt 0:01:46]} 35. Be8+ {[%emt 0:00:18]} Kf6 {[%emt 0:00:01]} 36. Qf7# {[%emt 0:00:03]} 1-0

[Event "IIFL Wealth 4th Mumbai Open"]
[Site "Mumbai"]
[Date "2019.01.03"]
[Round "5"]
[White "Mokashi, Rohit"]
[Black "Apoorv, Kamble"]
[Result "1/2-1/2"]
[ECO "E21"]
[WhiteElo "1641"]
[BlackElo "1458"]
[Annotator "NA"]
[PlyCount "100"]
[EventDate "2018.12.30"]
[EventType "swiss"]
[EventCountry "IND"]
[SourceTitle "playchess.com"]
[Source "ChessBase"]
[SourceQuality "1"]
[TimeControl "40/5400+30:1800+30"]

1. d4 {[%emt 0:00:00]} Nf6 {[%emt 0:00:00]} 2. Nf3 {[%emt 0:00:00]} e6 {[%emt 0:00:00]} 3. c4 {[%emt 0:00:00]} b6 {[%emt 0:00:00]} 4. Nc3 {[%emt 0:00:50]} Bb7 {[%emt 0:00:01]} 5. Bf4 {[%emt 0:00:56]} Be7 {[%emt 0:00:57]} 6. e3 {[%emt 0:00:29]} O-O {[%emt 0:00:17]} 7. Bd3 {[%emt 0:00:19]} Nh5 {[%emt 0:05:08]} 8. Bg3 {[%emt 0:01:05]} Nxg3 {[%emt 0:00:10]} 9. hxg3 {[%emt 0:00:20]} h6 {[%emt 0:00:14]} 10. e4 {[%emt 0:00:33]} d5 {[%emt 0:00:36]} 11. e5 {[%emt 0:05:20]} c5 {[%emt 0:01:04]} 12. cxd5 {[%emt 0:01:16]} exd5 {[%emt 0:03:02]} 13. Kf1 {[%emt 0:02:05]} cxd4 {[%emt 0:01:46]} 14. Ne2 {[%emt 0:02:58]} Nc6 {[%emt 0:02:51]} 15. Nexd4 {[%emt 0:00:04]} Nxd4 {[%emt 0:12:19]} 16. Nxd4 {[%emt 0:00:10]} Qc7 {[%emt 0:00:07]} 17. Qg4 {[%emt 0:18:41]} Bc8 {[%emt 0:12:27]} 18. e6 {[%emt 0:05:22]} fxe6 {[%emt 0:15:50]} 19. Rxh6 {[%emt 0:07:23]} Rf6 {[%emt 0:01:09]} 20. Rxf6 {[%emt 0:07:56]} Bxf6 {[%emt 0:00:02]} 21. Qh5 {[%emt 0:13:16]} Ba6 {[%emt 0:02:35]} 22. Qh7+ {[%emt 0:04:32]} Kf7 {[%emt 0:00:06]} 23. Qg6+ {[%emt 0:02:36]} Ke7 {[%emt 0:01:58]} 24. Nf5+ {[%emt 0:03:31]} exf5 {[%emt 0:02:39]} 25. Bxa6 {[%emt 0:00:04]} Kf8 {[%emt 0:05:09]} 26. Qxf5 {[%emt 0:01:13]} Qe5 {[%emt 0:00:23]} 27. Qxe5 {[%emt 0:08:52]} Bxe5 {[%emt 0:00:02]} 28. Rd1 {[%emt 0:00:56]} Bxb2 {[%emt 0:01:55]} 29. Rxd5 {[%emt 0:00:11]} Ke7 {[%emt 0:00:03]} 30. Bc4 {[%emt 0:04:06]} Rd8 {[%emt 0:00:45]} 31. Rf5 {[%emt 0:00:31]} Rf8 {[%emt 0:00:50]} 32. Rb5 {[%emt 0:01:05]} Bd4 {[%emt 0:00:30]} 33. f3 {[%emt 0:00:58]} Rc8 {[%emt 0:00:28]} 34. Bd5 {[%emt 0:02:44]} Rc5 {[%emt 0:02:55]} 35. Rxc5 {[%emt 0:00:58]} Bxc5 {[%emt 0:00:01]} 36. Ke2 {[%emt 0:00:28]} Kd6 {[%emt 0:00:55]} 37. Bc4 {[%emt 0:01:29]} Ke5 {[%emt 0:02:34]} 38. f4+ {[%emt 0:02:14]} Kd4 {[%emt 0:00:41]} 39. Bf7 {[%emt 0:00:37]} a5 {[%emt 0:03:11]} 40. a4 {[%emt 0:00:00]} Bd6 {[%emt 0:00:00]} 41. Kf3 {[%emt 0:01:25]} Be7 {[%emt 0:05:36]} 42. Kg4 {[%emt 0:02:00]} Ke3 {[%emt 0:03:04]} 43. Kh5 {[%emt 0:10:43]} Kf2 {[%emt 0:01:26]} 44. g4 {[%emt 0:00:43]} Kxg2 {[%emt 0:01:55]} 45. f5 {[%emt 0:07:44]} Kg3 {[%emt 0:00:17]} 46. g5 {[%emt 0:01:14]} Kf4 {[%emt 0:00:06]} 47. f6 {[%emt 0:03:55]} gxf6 {[%emt 0:00:12]} 48. g6 {[%emt 0:03:10]} Bf8 {[%emt 0:00:06]} 49. g7 {[%emt 0:00:17]} Bxg7 {[%emt 0:00:05]} 50. Kg6 {[%emt 0:00:11]} Bf8 1/2-1/2

[Event "IIFL Wealth 4th Mumbai Open"]
[Site "Mumbai"]
[Date "2019.01.03"]
[Round "5"]
[White "Makwana, Devam"]
[Black "Iyer Vivek"]
[Result "0-1"]
[ECO "B92"]
[WhiteElo "1617"]
[BlackElo "1379"]
[Annotator "NA"]
[PlyCount "93"]
[EventDate "2018.12.30"]
[EventType "swiss"]
[EventCountry "IND"]
[SourceTitle "playchess.com"]
[Source "ChessBase"]
[SourceQuality "1"]
[TimeControl "40/5400+30:1800+30"]

1. e4 {[%emt 0:00:00]} c5 {[%emt 0:00:00]} 2. Nf3 {[%emt 0:00:00]} d6 {[%emt 0:00:00]} 3. d4 {[%emt 0:00:00]} cxd4 {[%emt 0:00:11]} 4. Nxd4 {[%emt 0:00:00]} Nf6 {[%emt 0:00:20]} 5. Nc3 {[%emt 0:00:00]} a6 {[%emt 0:00:29]} 6. Be2 {[%emt 0:00:50]} g6 {[%emt 0:00:56]} 7. f3 {[%emt 0:00:37]} e5 {[%emt 0:01:34]} 8. Nb3 {[%emt 0:00:23]} Bg7 {[%emt 0:00:52]} 9. Be3 {[%emt 0:00:35]} O-O {[%emt 0:00:49]} 10. Qd2 {[%emt 0:00:31]} Nh5 {[%emt 0:02:12]} 11. O-O-O {[%emt 0:01:07]} Nc6 {[%emt 0:02:38]} 12. Qxd6 {[%emt 0:00:27]} Qxd6 {[%emt 0:00:20]} 13. Rxd6 {[%emt 0:00:27]} Be6 {[%emt 0:01:45]} 14. Nc5 {[%emt 0:00:32]} Nd4 {[%emt 0:01:02]} 15. Bxd4 {[%emt 0:02:11]} exd4 {[%emt 0:01:03]} 16. Nxe6 {[%emt 0:01:05]} fxe6 17. Na4 e5 {[%emt 0:02:23]} 18. Nc5 {[%emt 0:01:31]} Ra7 {[%emt 0:01:44]} 19. Nd7 {[%emt 0:00:50]} Rd8 {[%emt 0:00:37]} 20. Bc4+ {[%emt 0:01:22]} Kh8 {[%emt 0:00:50]} 21. Nxe5 {[%emt 0:00:23]} Rxd6 {[%emt 0:01:28]} 22. Nf7+ {[%emt 0:00:11]} Kg8 {[%emt 0:00:31]} 23. Nxd6+ {[%emt 0:00:05]} Kf8 {[%emt 0:00:36]} 24. Nc8 {[%emt 0:00:28]} Ra8 {[%emt 0:00:37]} 25. Nb6 {[%emt 0:00:11]} Ra7 {[%emt 0:00:10]} 26. Nd7+ {[%emt 0:00:44]} Ke8 {[%emt 0:00:44]} 27. Nb6 {[%emt 0:00:30]} Kd8 {[%emt 0:04:15]} 28. Rd1 {[%emt 0:00:18]} Kc7 {[%emt 0:00:33]} 29. Nd5+ {[%emt 0:00:17]} Kd6 {[%emt 0:00:48]} 30. c3 {[%emt 0:00:51]} dxc3 {[%emt 0:02:23]} 31. Nxc3+ {[%emt 0:00:10]} Kc5 {[%emt 0:00:14]} 32. Bb3 {[%emt 0:01:26]} Bxc3 {[%emt 0:02:56]} 33. bxc3 {[%emt 0:00:34]} Kc6 {[%emt 0:02:41]} 34. Bd5+ {[%emt 0:00:29]} Kc7 {[%emt 0:00:26]} 35. Be6 {[%emt 0:00:20]} Kb6 {[%emt 0:00:35]} 36. Bg4 {[%emt 0:00:28]} a5 {[%emt 0:00:37]} 37. Rd6+ {[%emt 0:00:19]} Kc7 {[%emt 0:00:15]} 38. Rd7+ {[%emt 0:00:08]} Kc6 {[%emt 0:00:14]} 39. Rxh7 {[%emt 0:00:21]} Nf4 {[%emt 0:00:39]} 40. g3 {[%emt 0:00:30]} Ne2+ {[%emt 0:00:27]} 41. Kd2 {[%emt 0:00:20]} Ng1 {[%emt 0:00:56]} 42. Ke1 {[%emt 0:00:18]} Kb5 {[%emt 0:02:04]} 43. e5 {[%emt 0:01:03]} Kc6 {[%emt 0:00:27]} 44. e6 {[%emt 0:00:06]} Ra8 {[%emt 0:00:24]} 45. Rd7 {[%emt 0:01:02]} b5 {[%emt 0:01:10]} 46. e7 {[%emt 0:00:19]} b4 {[%emt 0:00:26]} 47. Rd8 {[%emt 0:00:15]} 0-1

[Event "IIFL Wealth 4th Mumbai Open"]
[Site "Mumbai"]
[Date "2019.01.03"]
[Round "5"]
[White "Joel Paul G"]
[Black "Vinod, Chaturvedi"]
[Result "0-1"]
[ECO "B33"]
[WhiteElo "1603"]
[BlackElo "1387"]
[Annotator "NA"]
[PlyCount "52"]
[EventDate "2018.12.30"]
[EventType "swiss"]
[EventCountry "IND"]
[SourceTitle "playchess.com"]
[Source "ChessBase"]
[SourceQuality "1"]
[TimeControl "40/5400+30:1800+30"]

1. e4 c5 2. Nf3 Nc6 3. d4 cxd4 4. Nxd4 Nf6 5. Nc3 a6 6. Nxc6 bxc6 7. e5 Ng8 8. Bc4 d5 9. exd6 exd6 10. O-O d5 11. Nxd5 cxd5 12. Bxd5 Be6 13. Bc6+ Bd7 14. Re1+ Be7 15. Bxa8 Qxa8 16. Qd4 Nf6 17. Bg5 Be6 18. f4 Qc6 19. b4 h6 20. Bh4 Bd8 21. Rxe6+ fxe6 22. c4 O-O 23. c5 Bc7 24. Re1 Nd5 25. g3 Nxf4 26. Qe3 Nh3# 0-1

[Event "IIFL Wealth 4th Mumbai Open"]
[Site "Mumbai"]
[Date "2019.01.03"]
[Round "5"]
[White "Pingale Shivraj"]
[Black "Renganayaki V"]
[Result "1-0"]
[ECO "B27"]
[WhiteElo "1580"]
[BlackElo "1474"]
[Annotator "NA"]
[PlyCount "83"]
[EventDate "2018.12.30"]
[EventType "swiss"]
[EventCountry "IND"]
[SourceTitle "playchess.com"]
[Source "ChessBase"]
[SourceQuality "1"]
[TimeControl "40/5400+30:1800+30"]

1. e4 {[%emt 0:00:00]} c5 {[%emt 0:00:00]} 2. Nf3 {[%emt 0:00:00]} g6 {[%emt 0:00:00]} 3. d4 {[%emt 0:00:00]} cxd4 {[%emt 0:00:00]} 4. Nxd4 {[%emt 0:00:00]} Bg7 {[%emt 0:00:00]} 5. Nc3 {[%emt 0:00:00]} Nc6 {[%emt 0:00:01]} 6. Be3 {[%emt 0:00:00]} Nf6 {[%emt 0:00:18]} 7. f3 {[%emt 0:00:43]} O-O {[%emt 0:00:05]} 8. Qd2 {[%emt 0:00:03]} d5 {[%emt 0:00:04]} 9. Nxc6 {[%emt 0:05:07]} bxc6 {[%emt 0:00:07]} 10. e5 {[%emt 0:07:24]} Nd7 {[%emt 0:00:31]} 11. f4 {[%emt 0:00:05]} e6 {[%emt 0:00:03]} 12. Be2 {[%emt 0:01:38]} c5 {[%emt 0:00:15]} 13. Bf2 {[%emt 0:00:33]} Qe7 {[%emt 0:05:22]} 14. O-O {[%emt 0:01:27]} Bb7 {[%emt 0:02:08]} 15. Nb5 {[%emt 0:01:52]} f6 {[%emt 0:03:56]} 16. Nd6 {[%emt 0:04:02]} Bc6 {[%emt 0:01:51]} 17. Qa5 {[%emt 0:06:00]} fxe5 {[%emt 0:05:36]} 18. Qc7 {[%emt 0:01:29]} Ba4 {[%emt 0:26:32]} 19. b3 {[%emt 0:18:01]} exf4 {[%emt 0:02:01]} 20. bxa4 {[%emt 0:01:13]} Bxa1 {[%emt 0:00:13]} 21. Rxa1 {[%emt 0:00:16]} Qg7 {[%emt 0:03:09]} 22. Re1 {[%emt 0:01:22]} c4 {[%emt 0:01:24]} 23. Bg4 {[%emt 0:01:10]} e5 {[%emt 0:13:31]} 24. Qxd7 {[%emt 0:05:04]} Qxd7 {[%emt 0:00:04]} 25. Bxd7 {[%emt 0:00:24]} e4 {[%emt 0:00:03]} 26. Be6+ {[%emt 0:01:11]} Kg7 {[%emt 0:00:06]} 27. Bd4+ {[%emt 0:00:28]} Kh6 {[%emt 0:00:05]} 28. Bxd5 {[%emt 0:01:17]} Rad8 {[%emt 0:00:42]} 29. Be5 {[%emt 0:04:02]} g5 {[%emt 0:01:02]} 30. Nf7+ {[%emt 0:02:07]} Rxf7 {[%emt 0:00:01]} 31. Bxf7 {[%emt 0:00:09]} e3 {[%emt 0:00:02]} 32. Bxc4 Rd2 {[%emt 0:00:57]} 33. Bd3 {[%emt 0:01:36]} Kh5 {[%emt 0:00:23]} 34. Bc3 {[%emt 0:01:05]} Rxd3 {[%emt 0:00:06]} 35. cxd3 {[%emt 0:00:36]} g4 {[%emt 0:00:16]} 36. h3 {[%emt 0:00:46]} g3 {[%emt 0:00:10]} 37. Kf1 {[%emt 0:00:55]} Kg5 {[%emt 0:00:18]} 38. Ke2 {[%emt 0:00:16]} Kf5 {[%emt 0:00:03]} 39. Kf3 {[%emt 0:00:25]} h5 {[%emt 0:00:02]} 40. Rb1 {[%emt 0:00:00]} h4 {[%emt 0:00:00]} 41. Rb5+ {[%emt 0:00:24]} Ke6 {[%emt 0:00:20]} 42. Kxf4 {[%emt 0:00:06] Kd5 Ke4+} 1-0

[Event "IIFL Wealth 4th Mumbai Open"]
[Site "Mumbai"]
[Date "2019.01.03"]
[Round "5"]
[White "Nehete Arnav"]
[Black "Raghav, Srivathsav V"]
[Result "0-1"]
[ECO "E61"]
[WhiteElo "1544"]
[BlackElo "2056"]
[Annotator "NA"]
[PlyCount "165"]
[EventDate "2018.12.30"]
[EventType "swiss"]
[EventCountry "IND"]
[SourceTitle "playchess.com"]
[Source "ChessBase"]
[SourceQuality "1"]
[TimeControl "40/5400+30:1800+30"]

1. d4 Nf6 2. c4 g6 3. Nc3 Bg7 4. Nf3 O-O 5. Bg5 h6 6. Bh4 d6 7. e3 g5 8. Bg3 Nh5 9. Bd3 f5 10. Qc2 Nc6 11. Qd1 Nb8 12. Qc2 Nc6 13. Qd1 Nb8 14. Qc2 Nc6 15. Qd1 Nb8 16. Qc2 Nc6 17. Qd1 Nb8 18. Qc2 Nc6 19. Qd1 Nb8 20. Qc2 Nc6 21. Qd1 Nb8 22. Qc2 Nc6 23. Qd1 Nb8 24. Qc2 Nc6 25. Qd1 Nb8 26. Qc2 Nc6 27. Qd1 Nb8 28. Qc2 Nc6 29. Qd1 Nb8 30. Qc2 Nc6 31. Qd1 Nb8 32. Qc2 Nc6 33. Qd1 Nb8 34. Qc2 Nc6 35. Qd1 Nb8 36. Qc2 Nc6 37. Qd1 Nb8 38. Qc2 Nc6 39. Qd1 Nb8 40. Qc2 Nc6 41. Qd1 Nb8 42. Qc2 Nc6 43. Qd1 Nb8 44. Qc2 Nc6 45. Qd1 Nb8 46. Qc2 Nc6 47. Qd1 Nb8 48. Qc2 Nc6 49. Qd1 Nb8 50. Qc2 Nc6 51. Qd1 Nb8 52. Qc2 Nc6 53. Qd1 Nb8 54. Qc2 Nc6 55. Qd1 Nb8 56. Qc2 Nc6 57. Qd1 Nb8 58. Qc2 Nc6 59. Qd1 Nb8 60. Qc2 Nc6 61. Qd1 Nb8 62. Qc2 Nc6 63. O-O-O Nb4 64. Qe2 Nc6 65. Qc2 Nb4 66. Qe2 Nc6 67. Qc2 Nb4 68. Qe2 Nc6 69. Qc2 Nb4 70. Qe2 Nc6 71. Qc2 Nb4 72. Qe2 Nxd3+ 73. Qxd3 c6 74. Ne2 Qa5 75. Nc3 Qd8 76. Ne2 Qa5 77. a3 e5 78. b4 Qc7 79. Qb3 Qa5 80. Qd3 Qc7 81. Qb3 Qa5 82. Qd3 Qc7 83. Qb3 0-1